bitfinex-derivatives/quotes_SOLF0:USTF0_20241008
["timestamp","ask_amount","ask_price","bid_price","bid_amount"]
[1728395301413,12.58666171,144.26,144.23,0.12502]
[1728395301601,3.4676,144.24,144.23,0.12502]
[1728395303302,9.0766,144.26,144.23,0.12502]
[1728395304011,12.5439,144.26,144.23,3.59282]
[1728395304314,9.0766,144.26,144.23,0.12502]
[1728395304714,26.65,144.25,144.23,0.12502]
[1728395304914,26.65,144.25,144.17,0.12502]
[1728395305108,26.65,144.23,144.17,0.12502]
[1728395305308,6.32,144.22,144.17,0.12502]
[1728395306406,3.4686,144.2,144.17,3.59422]
[1728395306610,6.32,144.22,144.17,3.59422]
[1728395307319,26.65,144.2,144.17,0.12502]
[1728395307508,1.428,144.19,144.17,0.12502]
[1728395307720,6.32,144.18,144.17,0.12502]
[1728395308022,32.97,144.18,144.11,0.12502]
[1728395308219,33.97,144.18,144.12,10.91048807]
[1728395308406,26.65,144.15,144.13,5.80134218]
[1728395308611,6.32,144.14,144.11,0.12502]
[1728395308812,6.32,144.14,144.12,5.80099741]
[1728395308813,30.1203,144.13,144.12,5.80099741]
[1728395309115,30.1203,144.13,144.11,0.12502]
[1728395309317,30.1203,144.13,144.08,3.4713]
[1728395309512,3.4705,144.12,144.05,0.12502]
[1728395309915,3.4705,144.12,144.07,3.4717]
[1728395309916,3.4737075,144.12,144.07,3.4717]
[1728395310115,3.4709,144.11,144.05,0.12502]
[1728395310318,6.32,144.1,144.05,0.12502]
[1728395310622,6.32,144.1,144.06,3.4718]
[1728395310816,9.791,144.1,144.06,3.4718]
[1728395311018,6.32,144.1,144.05,0.12502]
[1728395311714,26.65,144.09,144.05,0.12502]
[1728395311917,30.1215,144.09,144.05,0.12502]
[1728395312513,3.4715,144.08,144.05,0.12502]
[1728395312717,26.65,144.09,144.05,0.12502]
[1728395313014,3.4719,144.07,144.05,0.12502]
[1728395313217,32.99,144.06,143.99,0.12502]
[1728395313416,6.34,144.05,143.99,0.12502]
[1728395313620,7.7832,144.05,143.99,0.12502]
[1728395313810,3.4726,144.04,144.0,3.4732]
[1728395314321,3.4728,144.03,143.99,3.59862]
[1728395314517,3.4728,144.03,143.95,1.3075]
[1728395314518,26.65,144.02,143.93,0.12502]
[1728395314820,9.84869458,144.01,143.93,0.12502]
[1728395315218,26.65,143.97,143.93,0.12502]
[1728395315526,9.84869458,144.01,143.88,0.12518]
[1728395315527,26.65,143.94,143.88,0.12518]
[1728395315713,6.34,143.93,143.9,3.4756]
[1728395315910,6.34,143.93,143.88,0.12518]
[1728395316916,9.8151,143.93,143.88,3.60128]
[1728395317216,6.34,143.93,143.88,0.12518]
[1728395317420,30.1253,143.92,143.88,0.12518]
[1728395317627,30.08679083,143.92,143.88,0.12518]
[1728395317922,3.4763,143.88,143.83,3.4774]
[1728395318225,6.34,143.87,143.81,0.12502]
[1728395318415,3.4768,143.86,143.82,3.4777]
[1728395318620,6.34,143.87,143.81,0.12502]
[1728395318621,32.99,143.87,143.81,0.12502]
[1728395319026,31.12129343,143.91,143.81,0.12502]
[1728395319323,6.34,143.9,143.81,0.12502]
[1728395319725,3.4761,143.89,143.84,3.477]
[1728395319927,6.34,143.9,143.81,0.12502]
[1728395321326,3.4761,143.89,143.84,3.4772]
[1728395322130,6.34,143.88,143.84,3.4772]
[1728395322926,9.8163,143.88,143.83,3.4774]
[1728395323329,26.65,143.87,143.81,0.12502]
[1728395323632,26.65,143.84,143.81,0.12502]
[1728395323827,6.34,143.83,143.81,0.12502]
[1728395325225,6.34,143.85,143.81,0.12502]
[1728395325814,6.34,143.86,143.81,0.12502]
[1728395326230,2.7613,143.9,143.81,0.12502]
[1728395326425,6.34,143.87,143.86,3.4768]
[1728395326625,6.34,143.87,143.81,0.12502]
[1728395327223,6.34,143.87,143.86,3.4768]
[1728395327424,2.7613,143.9,143.81,0.12502]
[1728395327634,6.34,143.89,143.81,0.12502]
[1728395327830,6.34,143.89,143.87,3.4764]
[1728395328425,6.34,143.89,143.81,0.12502]
[1728395329237,6.34,143.89,143.81,4.32542]
[1728395329429,6.34,143.89,143.83,3.4774]
[1728395329630,6.34,143.89,143.81,10.66542]
[1728395330131,68.7456274,143.98,143.86,26.65]
[1728395330323,68.7456274,143.98,143.92,26.65]
[1728395330324,1.27750443,143.97,143.92,26.65]
[1728395330630,63.77784741,143.98,143.93,6.88]
[1728395330831,63.77784741,143.98,143.97,3.4741]
[1728395331231,0.12502,143.99,143.97,6.88]
[1728395331433,0.12502,143.99,143.98,3.4739]
[1728395334938,0.12502,143.99,143.98,10.3539]
[1728395339129,0.12502,143.99,143.98,3.4739]
[1728395339531,0.12502,143.99,143.98,10.3539]
[1728395340337,0.12502,143.99,143.98,3.4739]
[1728395349747,0.12502,144.05,144.04,3.4724]
[1728395350244,0.12502,144.05,143.98,43.34]
[1728395350444,0.12502,144.05,143.99,6.88]
[1728395350951,0.12502,144.05,144.04,3.4724]
[1728395351250,0.12502,144.05,143.98,43.34]
[1728395351441,0.12502,144.05,144.03,3.4725]
[1728395351639,0.12502,144.05,143.99,6.88]
[1728395352348,0.12502,144.05,144.04,3.4724]
[1728395358945,0.12502,144.05,144.04,10.3524]
[1728395361045,1e-08,144.05,144.04,37.0024]
[1728395361257,0.12502,144.11,144.1,3.471]
[1728395370063,1.4215,144.16,144.15,3.4698]
[1728395372962,0.12502,144.17,144.16,3.4695]
[1728395373766,1.54252,144.23,144.15,26.65]
[1728395374062,1.54252,144.23,144.22,3.4681]
[1728395374655,0.12502,144.23,144.22,3.4681]
[1728395377258,0.12502,144.23,144.19,6.54]
[1728395377664,0.12502,144.23,144.22,3.4681]
[1728395391374,0.12502,144.23,144.22,20.1081]
[1728395393277,2.7798,144.28,144.22,16.64]
[1728395393484,2.7798,144.28,144.27,3.4669]
[1728395393783,0.12502,144.29,144.24,16.64]
[1728395394080,0.12502,144.29,144.28,3.4666]
[1728395395278,0.12502,144.35,144.33,3.4653]
[1728395395476,0.12502,144.35,144.3,16.64]
[1728395396480,0.12502,144.35,144.33,3.4652]
[1728395396884,0.12502,144.35,144.3,16.64]
[1728395397180,0.12502,144.35,144.31,6.18]
[1728395397682,0.12502,144.35,144.32,3.4655]
[1728395397980,0.12502,144.35,144.31,6.18]
[1728395398282,0.12502,144.35,144.33,3.4654]
[1728395399078,0.12502,144.35,144.34,3.4652]
[1728395400978,0.12502,144.35,144.3,16.64]
[1728395401281,0.12502,144.35,144.33,3.4654]
[1728395401483,0.12502,144.35,144.32,6.18]
[1728395401880,0.12502,144.35,144.33,3.4654]
[1728395402782,0.12502,144.35,144.31,6.18]
[1728395402987,0.12502,144.35,144.32,3.4656]
[1728395403187,0.12502,144.35,144.31,6.18]
[1728395403987,0.12502,144.35,144.32,3.4656]
[1728395404184,0.12502,144.35,144.26,16.64]
[1728395404385,0.12502,144.35,144.34,3.09014001]
[1728395409187,0.12502,144.35,144.34,19.73014001]
[1728395409397,2.7209,144.4,144.39,3.464]
[1728395409601,0.12502,144.41,144.37,6.18]
[1728395410108,0.12502,144.41,144.4,3.4638]
[1728395411202,0.12502,144.41,144.4,20.1038]
[1728395411403,0.12502,144.47,144.46,3.4623]
[1728395412298,16.76502,144.47,144.43,6.18]
[1728395412901,16.76502,144.47,144.45,3.4624]
[1728395413107,0.12502,144.47,144.42,16.64]
[1728395413308,0.12502,144.47,144.46,3.4623]
[1728395414916,0.12502,144.47,144.46,20.1023]
[1728395415417,1.50432,144.53,144.52,3.4609]
[1728395416110,1.50432,144.53,144.49,6.18]
[1728395416310,1.50432,144.53,144.46,16.64]
[1728395416505,1.50432,144.53,144.47,6.16]
[1728395416711,1.50432,144.53,144.48,16.64]
[1728395417006,1.50432,144.53,144.52,3.4609]
[1728395417609,0.12502,144.53,144.52,3.4609]
[1728395418602,0.12502,144.53,144.52,20.1009]
[1728395420711,0.12502,144.59,144.52,16.64]
[1728395420915,0.12502,144.59,144.58,3.4595]
[1728395421311,0.12502,144.59,144.55,22.66]
[1728395421312,0.12502,144.59,144.55,6.02]
[1728395421508,0.12502,144.65,144.61,16.64]
[1728395421710,0.12502,144.65,144.61,22.66]
[1728395421905,0.12502,144.65,144.62,3.4583]
[1728395422108,0.12502,144.65,144.61,6.02]
[1728395422506,0.12502,144.65,144.62,3.4583]
[1728395422707,0.12502,144.65,144.56,8.27543781]
[1728395422708,16.76502,144.65,144.56,8.27543781]
[1728395422909,16.76502,144.65,144.57,21.33564861]
[1728395423112,16.76502,144.65,144.58,5.89063408]
[1728395423113,0.12502,144.65,144.58,5.89063408]
[1728395423313,0.12502,144.65,144.58,16.64]
[1728395423511,0.12502,144.65,144.59,15.30250767]
[1728395423716,0.12502,144.65,144.62,3.4583]
[1728395424020,0.12502,144.65,144.58,16.64]
[1728395424217,0.12502,144.65,144.59,15.30086794]
[1728395424523,0.12502,144.65,144.6,5.88494921]
[1728395424715,0.12502,144.65,144.58,16.64]
[1728395425019,0.12502,144.65,144.6,3.4588]
[1728395425420,16.64,144.64,144.57,16.64]
[1728395425617,2.7704,144.63,144.55,16.64]
[1728395425814,16.64,144.62,144.56,11.74109856]
[1728395426022,20.0987,144.62,144.56,3.4598]
[1728395426213,16.64,144.62,144.56,3.4598]
[1728395426519,16.64,144.62,144.54,6.02]
[1728395426722,4.8819,144.61,144.54,6.02]
[1728395426921,1.423,144.61,144.54,6.02]
[1728395427419,1.423,144.61,144.53,16.76502]
[1728395427420,21.44885217,144.61,144.53,16.76502]
[1728395427716,16.64,144.59,144.53,6.14502]
[1728395427916,20.0994,144.59,144.53,6.14502]
[1728395428319,3.38829535,144.6,144.54,3.4602]
[1728395428519,3.38829535,144.6,144.53,0.12502]
[1728395428920,16.64,144.59,144.53,3.58562]
[1728395429122,16.64,144.59,144.53,0.12502]
[1728395429426,16.64,144.57,144.53,0.12502]
[1728395429620,20.0998,144.57,144.53,0.12502]
[1728395429829,2.7851,144.56,144.53,0.12502]
[1728395430723,2.7851,144.56,144.53,3.58562]
[1728395431226,2.7851,144.56,144.53,0.12502]
[1728395432232,2.7851,144.56,144.54,3.4602]
[1728395432533,2.7851,144.56,144.53,0.12502]
[1728395432821,2.7851,144.56,144.54,3.4604]
[1728395433015,26.1193,144.59,144.53,0.12502]
[1728395433016,1.423,144.61,144.53,0.12502]
[1728395433216,20.099,144.6,144.53,0.12502]
[1728395433529,16.64,144.58,144.53,0.12502]
[1728395433725,16.64,144.56,144.53,0.12502]
[1728395433923,1.3112,144.55,144.53,0.12502]
[1728395434124,2.7324,144.55,144.53,0.12502]
[1728395434626,2.7324,144.55,144.48,6.02]
[1728395435122,2.7324,144.55,144.5,3.4612]
[1728395435314,6.1927,144.55,144.48,6.02]
[1728395435719,6.1927,144.55,144.5,3.4613]
[1728395437126,6.1927,144.55,144.53,55.0]
[1728395437825,20.1004,144.54,144.53,50.656]
[1728395438431,16.64,144.54,144.53,50.656]
[1728395439026,12.2126,144.55,144.53,50.656]
[1728395439225,8.7524,144.55,144.53,50.656]
[1728395439631,2.7324,144.55,144.53,50.656]
[1728395439823,2.7324,144.55,144.54,3.4604]
[1728395440929,2.7324,144.55,144.53,50.656]
[1728395441233,2.7324,144.55,144.53,54.1166]
[1728395441735,2.7324,144.55,144.54,3.4604]
[1728395442641,1.4212,144.55,144.54,3.4604]
[1728395445037,1.4212,144.55,144.53,54.1164]
[1728395445430,10.93022,144.59,144.56,3.4598]
[1728395445631,8.81422,144.59,144.53,50.656]
[1728395446336,3.4596,144.58,144.55,3.46]
[1728395447134,2.79422,144.59,144.53,50.656]
[1728395448537,16.64,144.58,144.53,50.656]
[1728395448738,16.64,144.56,144.53,50.656]
[1728395449133,16.64,144.56,144.53,54.1165]
[1728395449327,16.64,144.58,144.53,50.656]
[1728395449748,3.4601,144.56,144.53,54.1164]
[1728395450044,16.64,144.58,144.53,50.656]
[1728395450237,3.4601,144.56,144.53,54.1166]
[1728395451632,20.1001,144.56,144.53,50.656]
[1728395451940,3.4604,144.55,144.53,50.656]
[1728395453246,22.7,144.56,144.53,50.656]
[1728395453540,20.1004,144.54,144.53,50.656]
[1728395453840,20.1004,144.54,144.53,48.4838]
[1728395454431,16.64,144.54,144.47,0.12502]
[1728395454646,16.64,144.51,144.47,0.12502]
[1728395455343,20.1013,144.51,144.48,3.4618]
[1728395455847,16.64,144.51,144.47,0.12502]
[1728395456041,3.4614,144.5,144.47,3.58702]
[1728395456346,16.64,144.53,144.47,0.12502]
[1728395456548,337.0,144.58,144.47,0.12502]
[1728395456757,16.64,144.56,144.47,0.12502]
[1728395457039,3.4606,144.54,144.51,3.4611]
[1728395457434,16.64,144.56,144.47,0.12502]
[1728395457744,16.64,144.56,144.48,22.7]
[1728395458135,20.1,144.56,144.53,3.4605]
[1728395458339,8.85422,144.59,144.52,16.64]
[1728395458647,2.79422,144.59,144.52,16.64]
[1728395458835,0.12502,144.59,144.56,16.64]
[1728395459344,0.12502,144.59,144.58,3.4595]
[1728395460536,0.12502,144.59,144.56,3.4598]
[1728395460732,0.12502,144.59,144.54,16.64]
[1728395460940,0.12502,144.59,144.56,16.64]
[1728395461147,0.12502,144.59,144.58,3.4595]
[1728395461448,0.12502,144.65,144.58,16.64]
[1728395461648,0.12502,144.65,144.6,16.64]
[1728395462036,0.12502,144.65,144.59,1.3119]
[1728395462235,3.58282,144.65,144.6,3.4589]
[1728395462445,16.76502,144.65,144.58,6.06]
[1728395462751,16.76502,144.65,144.57,9.5196]
[1728395462752,3.4585,144.62,144.57,9.5196]
[1728395462946,16.64,144.63,144.56,6.06]
[1728395463544,16.64,144.61,144.54,6.06]
[1728395464059,20.0993,144.59,144.54,3.4602]
[1728395464543,16.64,144.59,144.53,0.12502]
[1728395464941,16.64,144.58,144.53,0.12502]
[1728395465451,3.4601,144.56,144.53,0.12502]
[1728395466140,3.4602,144.55,144.53,0.12502]
[1728395466348,2.7927,144.6,144.55,3.4601]
[1728395466549,2.7927,144.6,144.53,0.12502]
[1728395467752,3.4594,144.59,144.53,0.12502]
[1728395468140,2.7927,144.6,144.53,0.12502]
[1728395468853,3.4593,144.59,144.54,3.4603]
[1728395469044,2.7927,144.6,144.54,16.64]
[1728395469552,1.4307,144.6,144.54,16.64]
[1728395470149,6.06,144.62,144.54,16.64]
[1728395470346,338.3408,144.63,144.55,16.64]
[1728395470545,25.4449,144.64,144.6,3.4588]
[1728395471049,3.4585,144.62,144.58,3.4594]
[1728395471259,25.4449,144.64,144.55,16.64]
[1728395471443,16.64,144.62,144.53,16.76502]
[1728395471643,3.4588,144.61,144.54,6.06]
[1728395472054,16.64,144.62,144.54,6.06]
[1728395472356,3.4593,144.59,144.55,3.4602]
[1728395472562,16.64,144.6,144.53,0.12502]
[1728395472852,22.7,144.6,144.53,0.12502]
[1728395473249,8.8049,144.64,144.53,0.12502]
[1728395473562,8.8049,144.64,144.55,16.64]
[1728395473854,2.7449,144.64,144.56,6.06]
[1728395474149,2.7449,144.64,144.6,3.4588]
[1728395474350,2.7449,144.64,144.57,16.64]
[1728395474555,1.3647,144.64,144.57,18.0352]
[1728395474756,0.12502,144.65,144.57,18.0352]
[1728395474757,0.12502,144.65,144.59,16.64]
[1728395474946,0.12502,144.65,144.57,19.3553]
[1728395475147,3.58292,144.65,144.61,3.4587]
[1728395475754,3.58292,144.65,144.61,3.4586]
[1728395475957,3.58292,144.65,144.57,2.7153]
[1728395475958,0.12502,144.65,144.57,2.7153]
[1728395476157,0.12502,144.65,144.57,19.3553]
[1728395476653,0.12502,144.65,144.58,6.06]
[1728395476857,16.76502,144.65,144.58,6.06]
[1728395477268,0.12502,144.65,144.58,22.7]
[1728395477555,0.12502,144.65,144.62,3.4583]
[1728395477757,0.12502,144.65,144.58,22.7]
[1728395478157,0.12502,144.65,144.58,6.06]
[1728395478462,0.12502,144.65,144.59,5.07438753]
[1728395478756,0.12502,144.65,144.57,8.9553]
[1728395478960,16.64,144.62,144.58,10.8466042]
[1728395479160,16.64,144.6,144.53,0.12502]
[1728395479466,16.64,144.6,144.54,5.77431064]
[1728395479663,16.64,144.6,144.57,3.4596]
[1728395480963,20.099,144.6,144.57,3.4596]
[1728395481559,20.099,144.6,144.53,0.12502]
[1728395481862,2.6442,144.61,144.58,3.4593]
[1728395481863,22.7429,144.61,144.58,3.4593]
[1728395482056,17.9508,144.61,144.54,16.64]
[1728395482258,9.698,144.64,144.61,3.4586]
[1728395482660,6.24,144.64,144.56,22.88]
[1728395482865,3.58292,144.65,144.62,3.4583]
[1728395483157,0.12502,144.65,144.58,16.64]
[1728395483359,0.12502,144.65,144.63,3.4581]
[1728395483859,0.12502,144.65,144.64,3.458]
[1728395484771,0.12502,144.65,144.61,1.3606]
[1728395485467,0.12502,144.65,144.64,3.458]
[1728395486661,0.12502,144.65,144.61,1.3606]
[1728395487067,0.12502,144.65,144.62,151.4891]
[1728395487570,3.4583,144.63,144.62,151.4891]
[1728395488270,9.6983,144.63,144.62,51.7639]
[1728395488467,9.6983,144.63,144.62,43.0743]
[1728395488678,9.6983,144.63,144.62,36.5571]
[1728395489062,9.6983,144.63,144.62,3.4871]
[1728395491075,9.6983,144.63,144.54,2.6847]
[1728395491076,6.24,144.63,144.54,2.6847]
[1728395491370,26.57,144.62,144.54,2.6847]
[1728395492270,3.4597,144.57,144.54,4.7709]
[1728395492666,6.24,144.59,144.54,1.3106]
[1728395492872,26.57,144.57,144.53,0.12502]
[1728395493367,26.57,144.55,144.47,0.12502]
[1728395493568,26.57,144.51,144.47,0.12502]
[1728395493772,6.24,144.5,144.47,0.12502]
[1728395493979,3.4618,144.49,144.47,0.12502]
[1728395494177,6.24,144.5,144.47,0.12502]
[1728395494776,3.4618,144.49,144.47,0.12502]
[1728395495474,6.24,144.5,144.47,0.12502]
[1728395495676,3.4616,144.49,144.47,0.12502]
[1728395496173,3.4618,144.48,144.47,0.12502]
[1728395496771,26.57,144.49,144.41,3.58842]
[1728395496976,26.57,144.47,144.41,0.12502]
[1728395497182,6.24,144.46,144.41,0.12502]
[1728395497378,3.4627,144.45,144.41,3.58842]
[1728395497781,6.24,144.46,144.41,0.12502]
[1728395498081,3.463,144.44,144.41,0.12502]
[1728395498285,6.24,144.43,144.41,0.12502]
[1728395498473,6.24,144.43,144.41,3.58842]
[1728395499473,6.24,144.44,144.41,0.12502]
[1728395499776,26.57,144.49,144.41,0.12502]
[1728395499970,6.24,144.48,144.41,0.12502]
[1728395500976,3.4625,144.46,144.42,3.4631]
[1728395501177,6.24,144.48,144.41,0.12502]
[1728395501376,6.24,144.47,144.46,3.4623]
[1728395501583,6.24,144.48,144.41,0.12502]
[1728395502283,6.24,144.49,144.41,0.12502]
[1728395502678,6.24,144.49,144.46,3.4622]
[1728395503579,6.24,144.5,144.41,0.12502]
[1728395504681,6.24,144.5,144.46,3.4621]
[1728395504887,74.84502,144.53,144.41,0.12502]
[1728395505082,6.24,144.52,144.42,5.75837595]
[1728395505273,6.24,144.52,144.41,0.12502]
[1728395505274,6.24,144.52,144.46,3.4622]
[1728395505789,3.4613,144.51,144.46,3.4622]
[1728395506086,3.4613,144.51,144.41,0.12502]
[1728395506282,9.701,144.52,144.41,0.12502]
[1728395506483,9.701,144.52,144.43,26.57]
[1728395506781,74.84502,144.53,144.44,1.3077]
[1728395506782,0.12502,144.53,144.44,1.3077]
[1728395506990,3.58582,144.53,144.45,2.7686]
[1728395507182,3.58582,144.53,144.49,3.4614]
[1728395507385,3.4609,144.52,144.45,2.7686]
[1728395507985,3.4613,144.51,144.45,2.7686]
[1728395508184,0.12502,144.53,144.45,2.7686]
[1728395508580,26.57,144.51,144.44,1.3077]
[1728395508886,26.57,144.49,144.44,1.3077]
[1728395509284,30.0317,144.49,144.45,3.4624]
[1728395509589,6.3,144.5,144.45,3.4624]
[1728395509785,3.4617,144.49,144.46,3.4623]
[1728395510098,6.3,144.5,144.44,1.3077]
[1728395510982,3.4619,144.48,144.45,3.4624]
[1728395511380,6.3,144.5,144.44,1.3077]
[1728395511586,3.4618,144.49,144.46,3.4622]
[1728395511784,6.3,144.5,144.44,1.3077]
[1728395512194,9.7615,144.5,144.45,3.4624]
[1728395512383,9.7615,144.5,144.44,1.3077]
[1728395512788,3.4617,144.49,144.46,3.4621]
[1728395512987,6.3,144.5,144.46,3.4621]
[1728395513286,3.462,144.48,144.45,3.4624]
[1728395513490,3.462,144.48,144.44,1.3077]
[1728395513788,3.462,144.48,144.45,3.4624]
[1728395513989,3.462,144.48,144.44,1.3077]
[1728395514394,3.462,144.48,144.45,3.4624]
[1728395514595,3.462,144.48,144.44,1.3077]
[1728395514596,3.4621,144.47,144.44,1.3077]
[1728395515100,6.3,144.5,144.45,3.4625]
[1728395515293,3.4617,144.49,144.44,1.3077]
[1728395515596,6.3,144.5,144.45,3.4624]
[1728395515808,6.3,144.5,144.44,1.3077]
[1728395516800,3.462,144.48,144.45,3.4624]
[1728395517999,3.462,144.48,144.46,3.4623]
[1728395518188,3.462,144.48,144.44,1.3077]
[1728395518391,6.3,144.5,144.44,1.3077]
[1728395518593,26.57,144.48,144.41,0.12502]
[1728395518795,16.62,144.46,144.41,0.12502]
[1728395518993,3.4627,144.45,144.43,3.4629]
[1728395519298,16.62,144.44,144.41,0.12502]
[1728395519504,16.62,144.44,144.42,3.4632]
[1728395520291,16.62,144.44,144.41,0.12502]
[1728395520490,9.7624,144.46,144.43,3.463]
[1728395520897,9.7624,144.46,144.41,0.12502]
[1728395520898,6.3,144.46,144.41,0.12502]
[1728395521590,26.6,144.51,144.41,0.12502]
[1728395521790,6.3,144.5,144.42,26.6]
[1728395522092,6.3,144.5,144.49,3.4616]
[1728395522296,0.12502,144.53,144.42,26.6]
[1728395522497,0.12502,144.53,144.52,3.4609]
[1728395522897,0.12502,144.53,144.45,7.7035]
[1728395523090,0.12502,144.53,144.48,3.4618]
[1728395523393,0.12502,144.53,144.46,2.7124]
[1728395523698,0.12502,144.53,144.51,3.4611]
[1728395523898,0.12502,144.53,144.46,2.7124]
[1728395524196,0.12502,144.53,144.51,3.4611]
[1728395524402,0.12502,144.53,144.46,2.7124]
[1728395525295,0.12502,144.53,144.48,3.4616]
[1728395525296,3.58582,144.53,144.48,3.4616]
[1728395525495,3.58582,144.53,144.46,2.7124]
[1728395526409,0.12502,144.53,144.46,2.7124]
[1728395526798,0.12502,144.53,144.5,3.4612]
[1728395527304,3.58582,144.53,144.5,3.4613]
[1728395527510,0.12502,144.53,144.46,2.7124]
[1728395527806,0.12502,144.53,144.5,3.4612]
[1728395528001,0.12502,144.53,144.46,2.7124]
[1728395528393,0.12502,144.53,144.49,3.4616]
[1728395528394,3.58572,144.53,144.49,3.4616]
[1728395529098,0.12502,144.53,144.49,3.4616]
[1728395529698,3.58582,144.53,144.46,2.7124]
[1728395529894,0.12502,144.53,144.5,3.4612]
[1728395530104,0.12502,144.53,144.46,2.7124]
[1728395530305,3.58582,144.53,144.46,2.7124]
[1728395530507,3.58582,144.53,144.49,3.4615]
[1728395530802,3.4609,144.52,144.49,3.4615]
[1728395531007,0.12502,144.53,144.49,3.4615]
[1728395531508,3.58582,144.53,144.5,3.4613]
[1728395531699,0.12502,144.53,144.46,2.7124]
[1728395532704,0.12502,144.53,144.5,3.4612]
[1728395533095,0.12502,144.53,144.46,2.7124]
[1728395533699,3.461,144.52,144.49,3.4616]
[1728395534013,0.12502,144.53,144.46,2.7124]
[1728395534195,0.12502,144.53,144.46,29.3124]
[1728395534399,0.12502,144.53,144.52,3.4609]
[1728395535412,0.12502,144.53,144.48,3.4618]
[1728395535413,3.58572,144.53,144.48,3.4618]
[1728395535600,0.12502,144.53,144.46,2.7124]
[1728395535903,0.12502,144.53,144.47,6.3]
[1728395536507,0.12502,144.53,144.52,3.4609]
[1728395537601,1.0,144.58,144.48,26.6]
[1728395537805,7.3,144.58,144.55,3.4601]
[1728395538004,10.7596,144.58,144.48,26.6]
[1728395538209,10.7596,144.58,144.51,3.4611]
[1728395538406,10.7596,144.58,144.52,1.3347]
[1728395538602,3.46,144.56,144.52,1.3347]
[1728395538801,3.46,144.56,144.52,4.7955]
[1728395539006,3.4598,144.57,144.52,1.3347]
[1728395539208,26.6,144.57,144.52,1.3347]
[1728395539404,26.6,144.57,144.5,3.4614]
[1728395539715,26.6,144.57,144.48,1.3347]
[1728395540012,26.6,144.57,144.54,3.4604]
[1728395540312,26.6,144.57,144.48,27.9347]
[1728395540313,6.24,144.57,144.48,27.9347]
[1728395540516,6.24,144.57,144.54,3.4603]
[1728395540712,9.6997,144.57,144.54,3.4603]
[1728395541008,7.24,144.58,144.48,27.9347]
[1728395541208,3.4599,144.57,144.53,3.4605]
[1728395541414,26.6,144.56,144.48,1.3347]
[1728395541611,3.4603,144.55,144.5,3.4613]
[1728395541911,30.04932106,144.56,144.48,1.3347]
[1728395542412,26.6,144.56,144.48,1.3347]
[1728395542917,30.0601,144.56,144.48,1.3347]
[1728395543215,26.6,144.56,144.48,1.3347]
[1728395543714,3.4602,144.55,144.52,3.4609]
[1728395544115,30.00619694,144.56,144.48,1.3347]
[1728395544301,30.00619694,144.56,144.49,3.4614]
[1728395544302,3.4607,144.53,144.49,3.4614]
[1728395544503,32.84,144.54,144.48,1.3347]
[1728395544708,6.24,144.54,144.48,1.3347]
[1728395544919,6.24,144.54,144.52,3.4608]
[1728395545613,6.24,144.54,144.48,1.3347]
[1728395546308,6.24,144.54,144.52,3.4608]
[1728395546504,16.63,144.55,144.48,17.9647]